bitfinex/quotes_ETHUSD_20250724
["timestamp","ask_amount","ask_price","bid_price","bid_amount"]
[1753393522746,0.002,3732.0,3731.4,0.4897]
[1753393522973,0.002,3732.0,3731.9,2.6796002]
[1753393523281,0.002,3732.0,3731.9,2.8132002]
[1753393523459,0.002,3732.0,3731.9,3.3029002]
[1753393527763,0.002,3732.8,3732.7,2.6790259]
[1753393527964,0.002,3732.8,3732.7,8.98672849]
[1753393528884,0.002,3732.8,3732.7,8.49702849]
[1753393529052,0.002,3732.8,3732.7,8.98672849]
[1753393534595,0.002,3732.8,3732.7,4.37422849]
[1753393534892,0.002,3732.8,3732.7,2.8126259]
[1753393535081,0.002,3732.8,3732.7,6.9676259]
[1753393536260,0.002,3732.8,3732.7,2.8126259]
[1753393536459,0.002,3732.8,3732.7,6.9676259]
[1753393536655,0.002,3732.8,3732.7,7.4573259]
[1753393536860,0.002,3732.8,3732.7,8.47096999]
[1753393537793,0.002,3732.8,3732.7,3.82626999]
[1753393538000,0.002,3732.8,3732.7,6.9646259]
[1753393538208,0.002,3732.8,3732.7,7.4543259]
[1753393538892,0.002,3732.8,3732.7,6.9646259]
[1753393539203,0.002,3732.8,3732.7,7.4543259]
[1753393539497,0.002,3732.8,3732.7,8.2302259]
[1753393539796,0.002,3732.8,3732.7,9.32115999]
[1753393549017,0.002,3732.8,3732.7,9.32095999]
[1753393550209,0.002,3732.8,3732.7,8.05555999]
[1753393550369,0.002,3732.8,3732.7,6.9646259]
[1753393551101,0.002,3732.8,3732.7,7.4541259]
[1753393551970,0.002,3732.8,3732.7,8.2726259]
[1753393552167,0.002,3732.8,3732.7,7.4541259]
[1753393553388,0.002,3732.8,3732.7,6.9646259]
[1753393554215,0.002,3732.8,3732.7,7.4541259]
[1753393557286,0.002,3732.8,3732.7,6.9646259]
[1753393558311,0.002,3732.8,3732.7,7.4541259]
[1753393558983,0.002,3732.8,3732.7,6.9646259]
[1753393559617,0.002,3732.8,3732.7,7.4541259]
[1753393560629,0.002,3732.8,3732.7,6.9646259]
[1753393560798,0.002,3732.8,3732.7,7.4541259]
[1753393561931,0.002,3732.8,3732.7,6.9646259]
[1753393562842,0.002,3732.8,3732.7,7.4541259]
[1753393563045,0.002,3732.8,3732.7,8.36635841]
[1753393567633,0.002,3732.8,3732.7,8.81645841]
[1753393568915,0.002,3732.8,3732.7,8.32695841]
[1753393569115,0.002,3732.8,3732.7,8.81645841]
[1753393569552,0.002,3732.8,3732.7,8.36635841]
[1753393569848,0.002,3732.8,3732.7,8.81645841]
[1753393573348,0.002,3732.8,3732.7,8.36635841]
[1753393576525,1.4152,3732.8,3732.0,0.001]
[1753393576732,0.787,3732.5,3732.1,4.12]
[1753393576937,0.82048961,3732.5,3732.1,4.12]
[1753393577144,0.6028,3732.4,3732.1,4.12]
[1753393577337,0.82048961,3732.5,3732.1,4.12]
[1753393577540,0.6028,3732.4,3732.2,4.12]
[1753393577729,0.82048961,3732.5,3732.2,4.12]
[1753393577932,0.6028,3732.3,3732.2,4.12]
[1753393579243,0.6028,3732.3,3732.1,4.121]
[1753393579429,0.1357,3732.3,3732.1,4.121]
[1753393579631,0.4671,3732.2,3732.1,4.121]
[1753393582342,0.4671,3732.2,3732.1,4.118]
[1753393583652,0.002,3732.8,3732.1,11.03132016]
[1753393583853,0.002,3732.8,3732.6,2.67907736]
[1753393584054,0.002,3732.8,3732.7,6.8000259]
[1753393584679,0.4691,3732.8,3732.7,6.8000259]
[1753393584968,0.002,3732.8,3732.7,7.2712259]
[1753393586550,0.002,3732.8,3732.7,7.4048259]
[1753393586728,0.002,3732.8,3732.7,9.0162465]
[1753393588964,0.002,3732.8,3732.7,8.5450465]
[1753393589159,0.002,3732.8,3732.7,9.0162465]
[1753393590470,0.002,3732.8,3732.7,7.4048259]
[1753393599173,0.002,3732.8,3732.7,0.1336]
[1753393599482,1.2562,3732.8,3732.6,4.116]
[1753393599686,0.7891,3732.8,3732.7,4.116]
[1753393600255,0.002,3732.8,3732.7,2.6790259]
[1753393600557,0.002,3732.8,3732.7,3.97668849]
[1753393601857,0.002,3732.8,3732.7,3.2838259]
[1753393608897,0.002,3732.8,3732.7,2.8126259]
[1753393609101,0.002,3732.8,3732.7,3.2997259]
[1753393611782,0.002,3732.8,3732.7,2.8126259]
[1753393612387,0.002,3732.8,3732.7,3.2997259]
[1753393613301,0.002,3732.8,3732.7,4.30920599]
[1753393618507,0.002,3732.8,3732.7,3.82210599]
[1753393618915,0.7571,3732.7,3731.3,0.8]
[1753393619114,6.5701566,3732.1,3731.3,0.1344]
[1753393619611,7.1718566,3732.1,3731.3,0.1344]
[1753393619782,7.1718566,3732.1,3731.3,4.115]
[1753393621312,7.1718566,3732.1,3731.2,0.001]
[1753393624298,7.7218566,3732.1,3731.2,0.001]
[1753393625822,3.47003108,3731.3,3731.2,0.001]
[1753393626127,17.30065124,3731.3,3731.2,0.001]
[1753393626297,5.68017474,3731.1,3731.0,0.001]
[1753393626506,7.02017474,3731.1,3731.0,0.001]
[1753393626711,7.62187474,3731.1,3731.0,0.001]
[1753393627511,11.73987474,3731.1,3731.0,0.001]
[1753393631915,11.73987474,3731.1,3730.6,0.001]
[1753393631916,6.98366211,3730.7,3730.6,0.001]
[1753393632108,17.13188227,3730.7,3730.6,1e-08]
[1753393632304,6.98373396,3730.6,3730.5,1e-08]
[1753393632504,7.58543396,3730.6,3730.5,1e-08]
[1753393633398,22.08543396,3730.6,3730.5,1e-08]
[1753393635538,23.69343396,3730.6,3730.5,1e-08]
[1753393636046,7.00436514,3730.0,3729.9,1e-08]
[1753393636250,17.2879853,3730.0,3729.9,1e-08]
[1753393636444,17.8621853,3730.0,3729.9,1e-08]
[1753393636759,25.64626514,3730.0,3729.9,1e-08]
[1753393636927,0.1344,3730.0,3729.9,0.45080001]
[1753393637125,4.125,3730.2,3729.9,0.45080001]
[1753393637324,1.2119,3730.5,3729.9,1e-08]
[1753393637325,3.0,3730.0,3729.9,1e-08]
[1753393638127,5.7144772,3730.0,3729.9,1e-08]
[1753393638340,2.68089992,3730.1,3729.9,1e-08]
[1753393638518,4.124,3730.0,3729.9,1e-08]
[1753393639044,7.124,3730.0,3729.9,1e-08]
[1753393639281,10.24346514,3730.0,3729.9,1e-08]
[1753393639715,11.01926514,3730.0,3729.9,1e-08]
[1753393639920,11.15496514,3730.0,3729.9,1e-08]
[1753393641219,11.70496514,3730.0,3729.9,1e-08]
[1753393643473,11.56926514,3730.0,3729.9,1e-08]
[1753393643627,11.57126514,3730.0,3729.9,1e-08]
[1753393645756,11.56926514,3730.0,3729.9,1e-08]
[1753393645958,11.70496514,3730.0,3729.9,1e-08]
[1753393647060,11.83936514,3730.0,3729.9,1e-08]
[1753393649971,12.40960777,3730.0,3729.9,1e-08]
[1753393650791,11.83936514,3730.0,3729.9,1e-08]
[1753393651091,12.40955592,3730.0,3729.9,1e-08]
[1753393651855,14.01755592,3730.0,3729.9,1e-08]
[1753393652567,14.26557421,3730.0,3729.9,1e-08]
[1753393654316,14.97660469,3730.0,3729.9,1e-08]
[1753393655200,15.21832802,3730.0,3729.9,1e-08]
[1753393655491,14.26557421,3730.0,3729.9,1e-08]
[1753393656297,15.21832802,3730.0,3729.9,1e-08]
[1753393656686,14.26557421,3730.0,3729.9,1e-08]
[1753393657074,15.21982083,3730.0,3729.9,1e-08]
[1753393657272,14.26557421,3730.0,3729.9,1e-08]
[1753393658000,14.51418007,3730.0,3729.9,1e-08]
[1753393658366,29.01418007,3730.0,3729.9,1e-08]
[1753393659600,30.44331079,3730.0,3729.9,1e-08]
[1753393659803,30.59253059,3730.0,3729.7,0.001]
[1753393660009,2.158,3728.7,3728.4,1e-08]
[1753393660219,11.55944371,3728.5,3728.4,1e-08]
[1753393660371,12.37828641,3728.5,3728.4,1e-08]
[1753393660578,27.45248641,3728.5,3728.4,1e-08]
[1753393660778,22.88078641,3728.5,3728.4,1e-08]
[1753393660992,27.00378641,3728.5,3728.4,1e-08]
[1753393661290,33.05366577,3728.5,3728.4,1e-08]
[1753393661876,29.31468232,3728.5,3728.4,1e-08]
[1753393662078,33.43768232,3728.5,3728.4,1e-08]
[1753393662412,33.18936577,3728.5,3728.4,1e-08]
[1753393662907,31.89436577,3728.5,3728.4,1e-08]
[1753393663112,33.19336577,3728.5,3728.4,1e-08]
[1753393663611,34.80136577,3728.5,3728.4,1e-08]
[1753393663995,36.48044824,3728.5,3728.4,1e-08]
[1753393664192,2.68326714,3726.8,3726.7,0.4508]
[1753393664392,9.94366714,3726.8,3726.7,0.4508]
[1753393665126,9.94366714,3726.8,3726.4,0.4526]
[1753393665127,3.0,3726.5,3726.4,0.4526]
[1753393665280,9.81048316,3726.5,3726.3,0.8181]
[1753393665599,9.94495517,3726.4,3726.3,0.8181]
[1753393666190,2.68369921,3726.2,3725.0,0.7534]
[1753393666390,6.23427551,3725.4,3725.0,0.7534]
[1753393666589,6.23427551,3725.4,3724.9,0.4615]
[1753393666590,10.37727551,3725.4,3724.9,0.4615]
[1753393666804,7.31605301,3725.4,3724.9,0.4615]
[1753393666998,11.47905301,3725.4,3724.9,0.4615]
[1753393667393,7.31605301,3725.4,3724.9,0.4615]
[1753393667593,11.47905301,3725.4,3724.9,0.4615]
[1753393668028,4.0817775,3725.4,3725.3,0.792]
[1753393668226,0.71345747,3727.1,3725.5,0.791]
[1753393668517,0.71345747,3727.3,3725.8,0.791]
[1753393668814,15.83173799,3727.7,3725.6,1.67751225]
[1753393668815,0.56843799,3727.6,3726.6,0.791]
[1753393668986,0.71345747,3727.7,3727.2,3.47396184]
[1753393668987,4.89045747,3727.7,3727.2,3.47396184]
[1753393669185,0.24699397,3727.6,3727.4,2.68277689]
[1753393669384,0.24699397,3727.6,3727.5,1.694]
[1753393669607,1.04065081,3727.8,3727.5,1.694]
[1753393669817,1.04065081,3727.8,3727.6,0.903]
[1753393670012,4.179,3727.7,3727.6,0.903]
[1753393670212,7.42599397,3727.7,3727.6,0.903]
[1753393670412,7.99443196,3727.7,3727.6,0.903]
[1753393670613,7.42599397,3727.7,3727.6,0.903]
[1753393671389,7.179,3727.7,3727.6,4.52689127]
[1753393671720,3.0,3727.7,3727.6,4.52689127]
[1753393671885,3.0,3727.7,3727.6,1.8442]
[1753393673129,1.04065081,3727.8,3727.7,3.4748193]
[1753393673335,2.68127153,3729.6,3728.6,0.7922]
[1753393673494,2.68127153,3729.6,3728.0,2.68237072]
[1753393673495,4.186,3729.6,3728.8,0.8031]
[1753393673699,2.68097186,3730.0,3728.0,6.86537072]
[1753393673700,2.68097186,3730.0,3729.0,0.8031]
[1753393673900,3.0,3729.8,3729.2,0.8031]
[1753393674099,5.68111541,3729.8,3729.3,0.903]
[1753393674302,4.185,3729.7,3729.2,0.8031]
[1753393674509,4.185,3729.7,3729.3,0.903]
[1753393674807,4.185,3729.7,3729.4,0.903]
[1753393675008,4.185,3729.7,3729.2,0.8031]
[1753393675220,4.185,3729.7,3729.5,0.903]
[1753393675394,4.185,3729.7,3729.2,0.8031]
[1753393675599,3.0,3729.6,3729.2,0.8031]
[1753393675800,5.68126084,3729.6,3729.2,0.8031]
[1753393676001,5.68146837,3729.3,3729.2,0.8031]
[1753393676629,1.05446499,3730.6,3729.3,0.8063]
[1753393676853,1.05446499,3730.6,3729.5,0.8063]
[1753393676854,3.73506778,3730.6,3729.5,0.8063]
[1753393677029,1.05446499,3730.6,3729.5,0.8063]
[1753393677233,2.68080784,3730.3,3729.7,0.8253]
[1753393677408,3.0,3730.2,3729.7,0.8253]
[1753393677594,3.0,3730.2,3729.9,0.8253]
[1753393678000,3.0,3730.2,3730.0,0.903]
[1753393678238,3.0,3730.2,3730.1,0.4615]
[1753393678542,2.6811089,3729.8,3728.5,0.8253]
[1753393678833,2.68163348,3729.1,3728.9,0.4615]
[1753393679035,2.68163348,3729.1,3728.8,0.4415]
[1753393679359,2.68163348,3729.1,3728.5,1.7283]
[1753393679360,3.03352105,3729.0,3728.5,1.7283]
[1753393679502,2.68189985,3728.7,3728.6,0.4615]
[1753393680533,2.68197178,3728.6,3728.5,0.8253]
[1753393680744,0.7739,3730.7,3728.5,0.8253]
[1753393680948,3.0,3730.1,3728.6,1.7283]
[1753393681242,2.6808214,3730.2,3728.9,2.68174435]
[1753393681243,3.0,3729.6,3728.9,2.68174435]
[1753393681444,7.188,3729.6,3729.0,0.903]
[1753393681651,3.0,3729.5,3729.1,0.4615]
[1753393681943,3.0,3729.5,3729.2,0.903]
[1753393682113,3.0,3729.5,3728.7,3.68001407]
[1753393682307,3.0,3729.5,3729.0,0.903]
[1753393682644,3.0,3729.5,3729.1,0.7655]
[1753393683145,3.0,3729.5,3729.2,0.903]
[1753393683347,3.0,3729.5,3729.3,0.903]
[1753393683516,3.0,3729.7,3729.1,3.44710806]
[1753393683715,4.188,3729.6,3729.2,0.903]
[1753393683917,3.0,3729.5,3729.1,0.7655]
[1753393684166,3.65893435,3730.4,3729.0,2.68166355]
[1753393684167,0.4919,3731.3,3729.6,0.7655]
[1753393684450,4.21,3731.2,3730.5,3.45630581]
[1753393684616,6.89010371,3731.2,3730.5,1.6787]
[1753393685015,3.0,3731.1,3730.5,1.6787]
[1753393685644,2.68021092,3731.1,3730.5,1.6787]
[1753393685964,3.0,3730.9,3730.5,1.6787]
[1753393686656,0.1364,3730.8,3730.5,1.6787]
[1753393686819,0.002,3730.8,3730.5,1.6787]
[1753393687156,0.002,3730.8,3730.5,4.49370581]
[1753393687314,0.002,3730.8,3730.5,5.21115496]
[1753393688937,0.002,3730.8,3730.5,4.74965496]
[1753393689148,0.002,3730.8,3730.5,5.21115496]
[1753393690373,0.002,3730.8,3730.5,1.3716]
[1753393690535,0.002,3730.8,3730.5,0.9101]
[1753393690931,0.002,3730.8,3730.5,1.3716]
[1753393691135,0.002,3730.8,3730.5,1.8131]
[1753393691916,2.68048128,3730.7,3730.5,1.3716]
[1753393692340,2.68048128,3730.7,3730.5,0.9101]
[1753393692559,6.73499895,3730.6,3730.0,1.2717]
[1753393692851,5.68064715,3730.5,3730.0,1.4061]
[1753393693356,5.68064715,3730.5,3730.0,0.9446]
[1753393693516,5.68064715,3730.5,3730.1,0.903]
[1753393693721,5.68064715,3730.5,3730.2,0.4615]
[1753393694667,1.05446499,3730.6,3730.2,0.4615]
[1753393694668,2.68068024,3730.4,3730.2,0.4615]
[1753393695326,2.6806288,3730.5,3730.2,0.4615]
[1753393697025,4.05446499,3730.6,3730.2,0.4615]
[1753393697226,4.05446499,3730.6,3730.2,0.9236]
[1753393697227,1.05446499,3730.6,3730.2,0.9236]
[1753393697465,3.7350007,3730.6,3730.2,0.9236]
[1753393698981,3.7350007,3730.6,3730.2,0.4635]
[1753393699764,1.05446499,3730.6,3730.0,0.9446]
[1753393699943,1.05446499,3730.6,3730.0,3.62555184]
[1753393699944,3.73502947,3730.6,3730.0,3.62555184]
[1753393703133,3.73502947,3730.6,3730.0,0.9446]
[1753393705632,3.0,3730.5,3730.0,0.9446]
[1753393705833,5.68060867,3730.5,3730.0,0.9446]
[1753393706070,5.68089327,3730.1,3730.0,0.1344]
[1753393706275,3.0,3730.0,3729.4,0.1344]
[1753393706435,2.68127016,3729.6,3729.2,0.1344]
[1753393706770,2.68127016,3729.6,3729.1,0.1344]
[1753393707763,2.68132764,3729.5,3729.0,0.7779]
[1753393708083,2.81572764,3729.5,3729.0,5.0993]
[1753393708863,2.81572764,3729.5,3729.0,5.0963]
[1753393711465,3.0,3729.4,3729.0,5.0963]
[1753393711769,2.68142657,3729.4,3729.0,5.0963]
[1753393713884,0.1344,3729.5,3729.0,5.0963]
[1753393714069,2.68047039,3730.7,3729.9,2.68097906]
[1753393714276,2.68047039,3730.7,3730.0,1.6978]
[1753393714473,3.0,3730.7,3730.1,2.68089327]
[1753393714782,3.0,3730.7,3730.1,3.60649327]
[1753393715294,2.68046657,3730.7,3730.1,3.60649327]
[1753393716389,4.05446499,3730.6,3730.1,3.60649327]
[1753393717556,4.05446499,3730.6,3730.2,0.9256]
[1753393717557,1.05446499,3730.6,3730.2,0.9256]
[1753393717758,1.05446499,3730.6,3730.5,3.46550581]
[1753393717953,1.05446499,3730.6,3730.5,4.39110581]
[1753393718984,1.05446499,3730.6,3730.5,3.92760581]
[1753393719188,1.05446499,3730.6,3730.5,4.39110581]
[1753393721670,1.05446499,3730.6,3730.5,5.51619134]
[1753393724001,1.05446499,3730.6,3730.5,5.65059134]
[1753393724808,1.05446499,3730.6,3730.5,9.82259134]
[1753393728389,1.05446499,3730.6,3730.5,8.89699134]
[1753393729476,1.05446499,3730.6,3730.5,9.35749134]
[1753393730397,1.05446499,3730.6,3730.5,9.85589134]
[1753393734104,1.05446499,3730.6,3730.5,8.89699134]
[1753393734399,1.05446499,3730.6,3730.5,6.98700581]
[1753393737215,1.05446499,3730.6,3730.5,7.94590581]
[1753393737677,1.05446499,3730.6,3730.5,6.98700581]
[1753393740176,1.05446499,3730.6,3730.5,6.96900581]
[1753393742488,1.05446499,3730.6,3730.5,4.2854]
[1753393744716,1.05446499,3730.6,3730.5,0.1344]
[1753393745092,1.05446499,3730.6,3729.5,0.7841]
[1753393745093,3.0,3730.5,3729.5,0.7841]
[1753393745427,2.68112511,3729.8,3729.0,2.68163183]
[1753393745707,2.68123177,3729.7,3729.2,0.1344]
[1753393745907,3.97304652,3729.7,3729.2,0.1344]
[1753393746075,0.8951,3729.6,3729.2,0.1344]
[1753393746278,3.57636185,3729.6,3729.2,0.1344]
[1753393746515,0.8951,3729.5,3729.2,0.1344]
[1753393747306,0.4349,3729.4,3729.2,0.1344]
[1753393747508,0.8951,3729.4,3729.2,0.1344]
[1753393747715,0.5693,3729.4,3729.0,4.15]
[1753393748017,0.8951,3729.3,3729.0,4.15]
[1753393748217,0.1344,3729.4,3729.0,4.15]
[1753393748418,0.8951,3729.2,3729.0,4.15]
[1753393750985,0.8951,3729.1,3728.6,0.7618]
[1753393751188,0.8951,3729.0,3728.8,4.2834]
[1753393752321,3.14169587,3729.3,3728.8,4.2834]
[1753393752620,0.8951,3729.2,3728.8,4.2834]
[1753393752782,0.8951,3729.1,3728.8,4.2834]
[1753393753198,0.4349,3729.0,3728.8,4.2834]
[1753393753620,0.4602,3729.1,3728.8,4.2834]
[1753393753821,0.8951,3728.9,3728.8,4.149]
[1753393757319,0.9659,3729.1,3728.6,0.1344]
[1753393757521,0.9659,3729.1,3728.4,4.146]
[1753393757522,3.0,3728.8,3728.4,4.146]
[1753393757720,3.0,3728.9,3728.5,0.1344]
[1753393758145,3.9334,3728.9,3728.5,0.1344]
[1753393758910,3.4697,3728.9,3728.5,4.2784]
[1753393759116,3.9334,3728.9,3728.5,4.2784]
[1753393759806,0.9334,3728.9,3728.5,4.2784]
[1753393760703,3.0,3728.7,3728.5,0.1344]
[1753393760901,3.0,3728.2,3728.0,0.1344]
[1753393761103,3.7721,3728.1,3727.8,0.001]
[1753393761293,5.81687538,3727.9,3727.8,0.001]
[1753393761708,6.75027538,3727.9,3727.8,0.001]
[1753393762103,7.52237538,3727.9,3727.8,0.001]
[1753393764517,8.07237538,3727.9,3727.8,0.001]
[1753393764924,12.21737538,3727.9,3727.8,0.001]
[1753393765499,6.45515116,3727.1,3727.0,0.001]
[1753393765696,10.73555116,3727.1,3727.0,0.001]
[1753393766038,11.66895116,3727.1,3727.0,0.001]
[1753393766400,13.26881334,3727.1,3727.0,0.001]
[1753393766702,13.26951334,3727.1,3727.0,0.001]
[1753393767128,13.27051334,3727.1,3727.0,0.001]
[1753393767325,9.12351334,3727.1,3727.0,0.001]
[1753393767524,8.74686218,3727.1,3727.0,0.001]
[1753393767735,4.59986218,3727.1,3727.0,0.001]
[1753393771834,8.74786218,3727.1,3727.0,0.001]
[1753393772545,11.43091334,3727.1,3727.0,0.001]
[1753393773549,13.32961334,3727.1,3727.0,0.001]
[1753393774946,13.87961334,3727.1,3727.0,0.001]
[1753393775445,13.87961334,3727.1,3726.3,0.001]
[1753393775446,4.06425517,3726.4,3726.3,1e-08]
[1753393775619,2.68427551,3725.4,3724.7,0.1344]
[1753393775947,7.69752895,3725.4,3724.7,0.1344]
[1753393776145,7.66397551,3725.4,3724.7,0.5882]
[1753393776318,7.79837551,3725.4,3724.7,0.5882]
[1753393776645,5.1141,3725.4,3724.7,3.27296664]
[1753393777060,8.5778,3725.4,3724.7,0.5882]
[1753393777221,8.5778,3725.4,3724.7,3.27296659]
[1753393777222,11.73177551,3725.4,3724.7,3.27296659]
[1753393777425,11.73177551,3725.4,3724.7,2.81916659]
[1753393778031,9.0475,3725.4,3724.5,0.001]
[1753393778207,7.58277551,3725.4,3724.5,0.001]
[1753393778410,10.3669167,3725.4,3724.6,2.68479096]
[1753393778857,10.3669167,3725.4,3724.7,2.68476064]
[1753393779013,10.3669167,3725.4,3724.7,2.68477792]
[1753393779412,10.3669167,3725.4,3724.7,2.68475759]
[1753393779618,10.3669167,3725.4,3724.8,2.68568896]
[1753393779856,9.8972167,3725.4,3724.8,2.68568896]
[1753393780014,9.8972167,3725.4,3724.8,0.001]
[1753393781412,10.3669167,3725.4,3724.8,0.001]
[1753393781641,4.4538167,3725.4,3724.8,0.001]
[1753393781821,1.3194167,3725.4,3725.3,3.60094756]
[1753393782038,1.3194167,3725.4,3725.3,5.18028986]
[1753393782241,1e-08,3725.4,3725.3,5.18028986]
[1753393785027,1e-08,3725.4,3725.3,9.33228986]
[1753393788938,1e-08,3725.4,3725.3,9.35248986]
[1753393793145,1e-08,3725.4,3725.3,15.40452388]
[1753393794164,1e-08,3725.4,3725.3,0.001]
[1753393794165,0.92670001,3725.4,3725.3,0.001]
[1753393795970,1e-08,3725.4,3725.3,0.001]
[1753393796138,1e-08,3725.4,3725.3,2.68534756]
[1753393796539,1e-08,3725.4,3725.3,8.55304756]
[1753393801059,0.92011106,3726.6,3726.2,2.6836432]
[1753393801266,0.92011106,3726.6,3726.4,2.68353561]
[1753393801591,0.4421,3726.5,3726.4,2.68353561]
[1753393802988,0.4421,3726.5,3726.3,2.68360476]
[1753393804289,0.9267,3726.4,3726.2,6.83268787]
[1753393804581,0.4846,3726.4,3726.2,6.83268787]
[1753393804785,0.1344,3726.6,3726.2,6.83268787]
[1753393804945,0.4421,3726.6,3726.2,6.83266549]
[1753393805145,0.4421,3726.6,3726.3,0.1344]
[1753393805350,0.4421,3726.6,3726.4,2.68349653]
[1753393805572,0.4846,3726.6,3726.4,2.68349653]
[1753393805771,0.4421,3726.5,3726.4,2.68349653]
[1753393807957,0.7716,3726.8,3726.4,2.68349653]
[1753393808151,1.2137,3726.8,3726.4,2.68349653]
[1753393808352,0.4421,3726.7,3726.4,2.68349653]
[1753393808866,0.4421,3726.6,3726.4,2.68349653]
[1753393810674,0.7716,3726.8,3726.3,2.68356467]
[1753393810970,0.4421,3726.7,3726.5,0.1344]
[1753393811164,0.9267,3726.7,3726.5,0.1344]
[1753393811489,0.9267,3726.7,3726.5,2.81782517]
[1753393811677,0.9267,3726.7,3726.6,2.68341115]
[1753393812484,0.4421,3726.7,3726.6,2.68341115]
[1753393813487,0.7716,3726.8,3726.6,2.68341115]
[1753393814274,0.002,3726.9,3726.6,2.68341115]
[1753393814574,0.002,3726.9,3726.7,6.82233897]
[1753393814774,0.002,3726.9,3726.8,2.68326714]
[1753393815750,0.002,3726.9,3726.7,6.82231276]
[1753393815950,0.002,3726.9,3726.8,2.68326714]
[1753393817789,0.002,3726.9,3726.8,3.62046714]
[1753393817972,0.002,3726.9,3726.8,5.46145493]
[1753393821490,0.002,3726.9,3726.8,6.26015493]
[1753393825812,0.002,3726.9,3726.8,5.78735493]
[1753393826979,0.002,3726.9,3726.8,5.32295493]
[1753393828792,0.002,3726.9,3726.8,6.26015493]
[1753393830490,0.002,3726.9,3726.8,5.32295493]
[1753393830693,0.002,3726.9,3726.8,4.52425493]
[1753393835007,0.002,3726.9,3726.8,8.66125493]
[1753393836535,0.002,3726.9,3726.8,4.52425493]
[1753393836722,0.002,3726.9,3726.8,8.66125493]
[1753393845141,0.4759,3726.9,3726.8,8.66125493]
[1753393845345,1.2859,3726.9,3726.8,6.82026714]
[1753393846253,1.7357,3726.9,3726.7,0.1344]
[1753393846457,0.812,3726.9,3726.8,4.137]
[1753393847126,1.7357,3726.9,3726.8,4.137]
[1753393847323,1.7357,3726.9,3726.7,0.1344]
[1753393847656,0.8325,3726.7,3726.6,0.1344]
[1753393847861,2.68334557,3726.7,3726.5,4.137]
[1753393848067,0.7696,3726.6,3726.4,4.2714]
[1753393848224,1.6933,3726.6,3726.4,4.2714]
[1753393848424,0.9237,3726.5,3726.4,4.2714]
[1753393848957,0.9237,3726.5,3726.4,0.1344]
[1753393848958,1.6933,3726.5,3726.4,0.1344]
[1753393849161,0.7696,3726.3,3726.1,0.001]
[1753393849456,0.80314533,3726.3,3726.1,0.001]
[1753393849659,0.9237,3726.2,3726.1,0.001]
[1753393849844,1.682,3726.2,3726.1,0.001]
[1753393855062,1.71554624,3726.2,3726.1,0.001]
[1753393856571,1.682,3726.2,3726.1,0.001]
[1753393859066,1.84994624,3726.2,3726.1,0.001]
[1753393859529,1.8164,3726.2,3726.1,0.001]
[1753393860666,1.84994624,3726.2,3726.1,0.001]
[1753393863475,7.50009921,3726.2,3726.1,0.001]
[1753393870564,8.05009921,3726.2,3726.1,0.001]
[1753393875490,2.68420346,3725.5,3725.4,0.001]
[1753393875656,10.72950346,3725.5,3725.4,0.001]
[1753393875851,12.21680346,3725.5,3725.4,0.001]
[1753393881065,13.82880346,3725.5,3725.4,0.001]
[1753393888905,13.35300346,3725.5,3725.4,0.001]
[1753393889070,13.82880346,3725.5,3725.4,0.001]
[1753393889997,12.89150346,3725.5,3725.4,0.001]
[1753393890200,5.81860346,3725.5,3725.4,0.001]
[1753393890400,10.50460346,3725.5,3725.4,0.001]
[1753393892601,6.36860346,3725.5,3725.4,0.001]
[1753393892788,10.50460346,3725.5,3725.4,0.001]
[1753393893204,6.36860346,3725.5,3725.4,0.001]
[1753393893379,10.50460346,3725.5,3725.4,0.001]
[1753393895498,9.95460346,3725.5,3725.4,0.001]
[1753393900413,0.002,3726.1,3726.0,2.68384326]
[1753393900614,0.002,3726.1,3726.0,4.69312759]
[1753393900914,0.002,3726.1,3726.0,4.82752759]
[1753393902108,0.002,3726.1,3726.0,7.14752759]
[1753393902109,1e-08,3726.1,3726.0,7.14752759]
[1753393902331,0.002,3727.5,3726.8,2.68326714]
[1753393902508,0.002,3727.5,3726.8,4.00752972]
[1753393902703,0.002,3727.5,3726.8,5.05712972]
[1753393903521,0.002,3726.9,3726.8,5.05712972]
[1753393906736,1.31078918,3728.0,3726.8,5.05712972]
[1753393906737,0.002,3730.4,3726.9,3.48939514]
[1753393906910,0.03550847,3730.4,3729.2,3.48774027]
[1753393907110,0.96970847,3730.4,3729.2,0.8062]
[1753393907316,3.61688849,3730.4,3729.4,2.68137261]
[1753393907519,2.68083564,3730.2,3729.3,0.9175]
[1753393907712,2.68076212,3730.3,3729.3,2.68145901]
[1753393907947,2.68076212,3730.3,3729.4,0.9175]
[1753393908129,2.68105487,3729.9,3729.4,0.9175]
[1753393908432,2.68105487,3729.9,3729.5,0.9175]
[1753393908802,2.68098112,3730.0,3729.6,0.9175]
[1753393909140,2.68098112,3730.0,3729.2,5.0822]
[1753393909141,0.03351206,3730.0,3729.2,5.0822]
[1753393909348,0.55,3728.9,3727.7,0.8203]
[1753393909639,2.68168409,3729.0,3727.2,0.8203]
[1753393909640,2.68290719,3727.3,3727.2,0.8203]
[1753393909846,2.6830854,3727.1,3726.9,1.2507]
[1753393910142,2.6830854,3727.1,3727.0,0.29408795]
[1753393910318,2.68299354,3727.2,3727.0,0.29408795]
[1753393912148,2.68286308,3727.4,3727.0,0.29408795]
[1753393912549,2.68286308,3727.4,3726.9,1.7378]
[1753393913783,0.002,3728.8,3727.4,0.7835]
[1753393913915,0.002,3728.8,3727.5,5.1915]
[1753393914229,0.002,3728.8,3728.4,0.7835]
[1753393914754,0.002,3728.8,3728.7,2.68189985]
[1753393915253,0.002,3728.8,3728.7,3.59939985]
[1753393915616,0.002,3728.8,3728.7,7.88439985]
[1753393916962,0.002,3728.8,3728.7,8.01879985]